bitfinex/quotes_SOLUSD_20251204
["timestamp","ask_amount","ask_price","bid_price","bid_amount"]
[1764876396426,13.30511948,138.6,138.54,0.71]
[1764876396741,12.63511948,138.59,138.54,13.34511948]
[1764876396943,0.2,138.61,138.58,7.21571933]
[1764876397131,12.63511948,138.6,138.58,7.21571933]
[1764876397328,8.08453971,138.61,138.57,7.21641969]
[1764876397532,12.63511948,138.6,138.56,25.25957981]
[1764876397925,12.63511948,138.6,138.56,25.96957981]
[1764876398247,12.63511948,138.6,138.55,12.63511948]
[1764876398248,12.63511948,138.58,138.55,7.21749599]
[1764876398442,12.63511948,138.56,138.55,7.21761097]
[1764876398832,13.30511948,138.56,138.53,7.21829868]
[1764876399032,12.63511948,138.54,138.43,22.1510429]
[1764876399231,0.67,138.55,138.47,13.34511948]
[1764876399232,16.978864,138.55,138.47,13.34511948]
[1764876399534,12.63511948,138.52,138.48,7.22125938]
[1764876399923,13.30511948,138.51,138.48,7.22125938]
[1764876400146,12.63511948,138.51,138.48,7.22125938]
[1764876400739,0.67,138.53,138.48,7.22125938]
[1764876400949,12.63511948,138.5,138.47,7.22168813]
[1764876401247,0.67,138.53,138.47,7.22168813]
[1764876401444,12.63511948,138.51,138.47,7.22168813]
[1764876401842,12.63511948,138.5,138.47,7.22168813]
[1764876402246,7.88892784,138.53,138.47,25.98614035]
[1764876402431,12.63511948,138.5,138.47,25.98614035]
[1764876402630,0.67,138.52,138.47,25.98614035]
[1764876403148,0.67,138.52,138.47,7.22168813]
[1764876403149,12.63511948,138.5,138.47,7.22168813]
[1764876403455,12.63511948,138.49,138.47,7.22168813]
[1764876403657,12.63511948,138.48,138.44,0.72]
[1764876403857,12.63511948,138.48,138.44,21.55511948]
[1764876404056,12.63511948,138.51,138.46,12.63511948]
[1764876404279,0.71,138.5,138.45,33.47988443]
[1764876404577,12.63511948,138.49,138.45,33.47988443]
[1764876404765,12.63511948,138.47,138.44,7.22315118]
[1764876405263,12.63511948,138.49,138.45,0.72]
[1764876405758,12.63511948,138.49,138.46,7.22230247]
[1764876405959,7.92981104,138.51,138.46,7.22230247]
[1764876406139,12.63511948,138.49,138.46,7.22230247]
[1764876406340,13.34511948,138.5,138.46,7.94230247]
[1764876406571,12.63511948,138.51,138.47,0.72]
[1764876406758,12.63511948,138.5,138.46,38.63317812]
[1764876406960,8.2,138.52,138.46,38.63317812]
[1764876406961,12.63511948,138.51,138.46,38.63317812]
[1764876407144,12.63511948,138.51,138.47,12.63511948]
[1764876407471,12.63511948,138.51,138.47,0.72]
[1764876407668,20.83511948,138.52,138.47,13.35511948]
[1764876407850,20.83511948,138.52,138.48,7.22125938]
[1764876408048,12.63511948,138.54,138.48,34.19440784]
[1764876408256,7.21677629,138.57,138.49,0.72]
[1764876408459,12.63511948,138.57,138.53,12.63511948]
[1764876408669,0.91,138.61,138.54,12.63511948]
[1764876408974,0.91,138.61,138.54,20.83511948]
[1764876408975,12.63511948,138.59,138.54,20.83511948]
[1764876409272,0.9,138.61,138.54,8.92]
[1764876409449,12.63511948,138.6,138.55,12.63511948]
[1764876409647,12.63511948,138.58,138.54,8.92]
[1764876409947,13.33511948,138.6,138.55,19.85273045]
[1764876410166,12.63511948,138.59,138.55,19.85273045]
[1764876410459,13.33511948,138.6,138.56,12.63511948]
[1764876410667,0.7,138.6,138.56,12.63511948]
[1764876410868,13.33511948,138.6,138.56,12.63511948]
[1764876411061,13.33511948,138.6,138.55,38.61675787]
[1764876411263,0.7,138.6,138.55,37.89675787]
[1764876411468,0.2,138.61,138.57,12.63511948]
[1764876411779,12.63511948,138.6,138.55,46.81675787]
[1764876411992,13.53511948,138.61,138.55,34.18163839]
[1764876412152,0.2,138.61,138.57,12.63511948]
[1764876412581,0.2,138.61,138.57,0.72]
[1764876412766,12.83511948,138.61,138.57,0.72]
[1764876412965,0.2,138.61,138.6,12.63511948]
[1764876413166,0.2,138.61,138.58,8.2]
[1764876413383,0.2,138.61,138.59,0.72]
[1764876413573,0.2,138.61,138.59,13.35511948]
[1764876414057,0.2,138.61,138.6,7.21500721]
[1764876414870,0.2,138.61,138.6,20.57012669]
[1764876415887,0.2,138.61,138.6,7.93500721]
[1764876416076,0.2,138.61,138.6,20.57012669]
[1764876416386,0.2,138.61,138.6,7.93500721]
[1764876416572,0.2,138.61,138.6,20.57012669]
[1764876416891,0.2,138.61,138.6,530.57012669]
[1764876416892,1e-08,138.61,138.6,530.57012669]
[1764876417181,0.2,138.62,138.6,529.85012669]
[1764876417182,1e-08,138.62,138.6,529.85012669]
[1764876417485,1e-08,138.62,138.61,21.55511948]
[1764876418054,1e-08,138.62,138.61,28.76960616]
[1764876419058,1e-08,138.65,138.64,16.308864]
[1764876419293,1e-08,138.65,138.64,20.83511948]
[1764876419501,1e-08,138.65,138.64,21.55511948]
[1764876419792,1e-08,138.67,138.64,34.03880892]
[1764876419981,0.2,138.73,138.67,61.29660343]
[1764876420182,0.2,138.73,138.72,12.63511948]
[1764876420386,0.2,138.73,138.71,8.2]
[1764876420585,191.30990295,138.82,138.71,8.2]
[1764876420586,12.63511948,138.81,138.72,12.63511948]
[1764876420891,12.63511948,138.8,138.72,0.72]
[1764876421098,8.2,138.8,138.7,20.83511948]
[1764876421275,9.50994492,138.79,138.71,12.63511948]
[1764876421595,0.7,138.82,138.73,16.308864]
[1764876421769,12.63511948,138.79,138.74,12.63511948]
[1764876421971,8.2,138.83,138.75,25.22522521]
[1764876422172,8.2,138.83,138.76,8.2]
[1764876422173,0.7,138.82,138.76,8.2]
[1764876422372,0.7,138.82,138.75,25.22522521]
[1764876422596,9.50994492,138.82,138.75,7.2072072]
[1764876422814,12.63511948,138.77,138.72,12.63511948]
[1764876422989,8.80994492,138.8,138.72,12.63511948]
[1764876423175,0.7,138.79,138.74,7.20762659]
[1764876423390,12.63511948,138.78,138.74,7.20762659]
[1764876423597,12.63511948,138.76,138.71,18.02287746]
[1764876423781,12.63511948,138.75,138.7,12.63511948]
[1764876423979,12.63511948,138.75,138.69,8.2]
[1764876423980,16.308864,138.77,138.71,12.63511948]
[1764876424194,0.7,138.76,138.71,12.63511948]
[1764876424697,12.63511948,138.75,138.69,18.02564652]
[1764876424897,12.63511948,138.75,138.71,12.63511948]
[1764876425197,12.63511948,138.73,138.67,18.0281123]
[1764876425423,0.7,138.74,138.67,18.0281123]
[1764876425697,0.7,138.73,138.68,7.21076749]
[1764876425909,12.63511948,138.72,138.68,12.63511948]
[1764876426106,13.33511948,138.73,138.69,19.84544466]
[1764876426280,183.11295614,138.79,138.69,7.21032518]
[1764876426475,7.90797325,138.75,138.69,7.93032518]
[1764876426673,7.20797325,138.73,138.69,25.23613814]
[1764876426900,7.20797325,138.73,138.69,15.13829843]
[1764876427079,0.7,138.75,138.69,15.13829843]
[1764876427402,0.7,138.75,138.69,14.41829843]
[1764876427586,7.20797325,138.74,138.69,14.41829843]
[1764876427771,7.20797325,138.74,138.69,7.21032518]
[1764876427974,0.7,138.73,138.69,25.23378621]
[1764876428209,7.90797325,138.73,138.69,18.02581296]
[1764876428376,7.90797325,138.73,138.68,14.41881836]
[1764876428377,7.20797325,138.71,138.68,7.21084511]
[1764876428582,8.80994492,138.75,138.68,25.23795788]
[1764876428908,7.20797325,138.71,138.68,7.21084511]
[1764876429107,7.20797325,138.69,138.62,36.06763057]
[1764876429284,34.03529766,138.75,138.61,0.72]
[1764876429285,7.20684797,138.76,138.68,7.20797325]
[1764876429604,7.20797325,138.71,138.67,25.23955699]
[1764876429990,7.20797325,138.71,138.66,8.2]
[1764876429991,0.7,138.7,138.66,15.41180175]
[1764876430300,7.90797325,138.7,138.66,40.64948796]
[1764876430602,7.90797325,138.7,138.66,32.44948796]
[1764876430802,0.7,138.69,138.66,7.21180175]
[1764876431105,16.71890679,138.72,138.66,7.21180175]
[1764876431406,0.7,138.72,138.66,33.16948796]
[1764876431702,7.20797325,138.68,138.66,7.21180175]
[1764876432085,7.20797325,138.69,138.65,25.24341867]
[1764876432289,7.20797325,138.68,138.65,7.21240533]
[1764876432509,7.20797325,138.67,138.65,7.21240533]
[1764876432999,23.51816681,138.71,138.65,7.21240533]
[1764876433185,0.66,138.67,138.65,7.21240533]
[1764876433387,7.20797325,138.68,138.65,7.21240533]
[1764876433589,7.86797325,138.68,138.65,7.21240533]
[1764876433906,15.40797325,138.7,138.66,7.20797325]
[1764876434103,16.06797325,138.7,138.67,7.21136511]
[1764876434316,0.66,138.73,138.68,7.20797325]
[1764876434479,0.66,138.73,138.69,7.20797325]
[1764876434679,7.20797325,138.75,138.7,7.20797325]
[1764876434880,7.20797325,138.75,138.68,8.92]
[1764876434881,7.86797325,138.76,138.72,7.20797325]
[1764876435087,7.20797325,138.77,138.73,7.20797325]
[1764876435288,7.20797325,138.77,138.72,7.20797325]
[1764876435495,7.20797325,138.77,138.67,61.29660343]
[1764876435496,7.20797325,138.73,138.67,61.29660343]
[1764876435700,7.20797325,138.73,138.69,7.20797325]
[1764876435897,7.86797325,138.73,138.68,15.40797325]
[1764876436100,7.86797325,138.73,138.69,7.21032518]
[1764876436295,7.20797325,138.74,138.7,7.20797325]
[1764876436612,0.66,138.75,138.71,7.20797325]
[1764876437108,0.66,138.75,138.7,7.20797325]
[1764876437292,7.20797325,138.74,138.69,25.23613814]
[1764876437495,7.86797325,138.75,138.7,7.20797325]
[1764876437686,7.86736702,138.75,138.7,7.20797325]
[1764876437893,7.20797325,138.73,138.69,25.23613814]
[1764876438089,7.86797325,138.74,138.7,7.20797325]
[1764876438294,7.86797325,138.76,138.72,7.20797325]
[1764876438909,7.20797325,138.73,138.69,32.44411139]
[1764876439210,7.20797325,138.73,138.69,7.21032518]
[1764876439511,7.20797325,138.7,138.65,18.03053028]
[1764876439809,7.20797325,138.68,138.65,7.21232783]
[1764876440611,0.66,138.68,138.65,7.21232783]
[1764876440912,0.66,138.68,138.65,25.24334117]
[1764876441124,7.20797325,138.7,138.65,33.17131442]
[1764876441325,7.86797325,138.7,138.65,33.17131442]
[1764876441529,7.86797325,138.7,138.65,25.96334117]
[1764876441690,0.66,138.69,138.65,32.45131442]
[1764876441896,7.86797325,138.69,138.65,25.24334117]
[1764876442093,7.20797325,138.68,138.65,7.21232783]
[1764876442308,7.86797325,138.68,138.65,7.21232783]
[1764876442503,7.20797325,138.7,138.66,0.72]
[1764876442706,7.20797325,138.68,138.65,7.21232783]
[1764876442932,0.66,138.71,138.65,7.21232783]
[1764876443090,7.20797325,138.69,138.65,14.42030108]
[1764876443509,7.20797325,138.69,138.65,7.21232783]
[1764876443716,7.86797325,138.69,138.65,14.42030108]
[1764876443918,7.20797325,138.69,138.65,25.24334117]
[1764876444222,7.86797325,138.69,138.65,32.45131442]
[1764876444427,7.86797325,138.69,138.65,25.24334117]
[1764876444724,7.20797325,138.68,138.65,25.24334117]
[1764876445023,7.20797325,138.68,138.65,7.21232783]
[1764876445218,0.66,138.69,138.65,7.21232783]
[1764876446319,7.87036512,138.69,138.65,7.21232783]
[1764876446501,0.66,138.69,138.65,7.21232783]
[1764876446698,0.66,138.68,138.65,7.21232783]
[1764876447100,7.20797325,138.67,138.64,7.21270765]
[1764876447520,7.86797325,138.67,138.64,7.21270765]
[1764876447698,7.86797325,138.66,138.63,7.21334552]
[1764876448605,7.20797325,138.66,138.63,7.21334552]
[1764876448806,0.66,138.65,138.63,7.21334552]
[1764876449006,7.86797325,138.7,138.64,0.72]
[1764876449408,7.86797325,138.7,138.66,7.20797325]
[1764876449612,7.20797325,138.68,138.63,32.45493342]
[1764876450037,7.86797325,138.67,138.63,32.45493342]
[1764876450205,0.66,138.66,138.63,32.45493342]
[1764876450400,7.86797325,138.66,138.63,25.24696017]
[1764876450600,7.20797325,138.65,138.63,7.21334552]
[1764876450807,7.86797325,138.65,138.63,7.21334552]
[1764876451205,7.20797325,138.67,138.63,7.21334552]
[1764876451405,0.66,138.68,138.63,7.21334552]
[1764876451605,7.86797325,138.68,138.63,15.14131877]
[1764876451927,7.20797325,138.69,138.65,7.20797325]
[1764876452119,7.86797325,138.68,138.65,7.21240533]
[1764876453207,7.20797325,138.67,138.64,7.21292556]
[1764876453528,7.86797325,138.67,138.64,7.21292556]
[1764876453725,7.86797325,138.67,138.63,15.41334188]
[1764876453921,7.20797325,138.67,138.63,23.34131513]
[1764876454125,0.66,138.74,138.66,7.20797325]
[1764876454335,0.66,138.74,138.67,8.92]
[1764876454514,0.66,138.74,138.7,7.20797325]
[1764876454711,7.20797325,138.73,138.69,7.20797325]
[1764876454933,7.86797325,138.74,138.69,0.72]
[1764876455135,7.86797325,138.74,138.71,7.20928555]
[1764876455315,0.66,138.73,138.71,7.20928555]
[1764876455841,7.86797325,138.73,138.7,7.20960618]
[1764876456210,7.86797325,138.73,138.69,7.2100376]
[1764876456432,7.86797325,138.73,138.7,7.20971674]
[1764876456433,0.66,138.73,138.7,7.20971674]
[1764876456626,7.20797325,138.71,138.63,0.72]
[1764876456851,7.20797325,138.7,138.66,7.20797325]
[1764876457347,7.86879932,138.72,138.66,25.95757137]
[1764876457647,7.86797325,138.72,138.67,32.44775113]
[1764876457823,7.20797325,138.72,138.67,33.16775113]
[1764876458025,7.86797325,138.72,138.67,33.16775113]
[1764876458220,7.86797325,138.72,138.67,25.95977788]
[1764876458424,0.66,138.71,138.67,7.21136511]
[1764876458635,7.86797325,138.71,138.67,14.41933836]
[1764876458831,7.20797325,138.7,138.67,7.21136511]
[1764876459144,7.20797325,138.69,138.66,7.21174205]
[1764876459327,7.20797325,138.7,138.66,15.1397153]
[1764876459522,7.86897628,138.72,138.67,7.92797325]
[1764876459523,7.20797325,138.71,138.67,7.92797325]
[1764876459727,7.86797325,138.72,138.68,7.20797325]
[1764876460038,0.66,138.72,138.68,7.92797325]
[1764876460247,31.71671286,138.74,138.69,7.20797325]
[1764876460447,7.20797325,138.74,138.69,7.92797325]
[1764876460742,7.86797325,138.74,138.69,7.92797325]
[1764876461265,7.86797325,138.74,138.7,7.20980533]
[1764876461431,7.86797325,138.74,138.7,15.13777858]
[1764876461432,0.66,138.74,138.7,15.13777858]
[1764876461629,0.66,138.74,138.7,33.16229191]
[1764876461861,7.20797325,138.75,138.71,7.92797325]
[1764876462165,43.13365714,138.78,138.73,7.20797325]
[1764876462166,7.20797325,138.78,138.73,7.20797325]
[1764876462336,7.86797325,138.78,138.74,7.20797325]
[1764876462538,7.20797325,138.77,138.73,0.72]
[1764876462729,8.2,138.79,138.74,7.20797325]
[1764876462926,0.72,138.78,138.73,0.72]
[1764876463132,7.20797325,138.79,138.74,7.20797325]
[1764876463332,7.20797325,138.78,138.75,7.2072072]
[1764876463738,7.20797325,138.77,138.74,7.20760422]
[1764876464154,7.20797325,138.75,138.7,7.20797325]
[1764876464359,7.20797325,138.75,138.63,0.99999999]
[1764876464360,7.20797325,138.71,138.67,7.21136511]
[1764876464559,7.20797325,138.7,138.67,7.21136511]
[1764876464750,7.20797325,138.69,138.66,7.2117822]
[1764876465063,16.308864,138.72,138.65,7.21236119]
[1764876465064,7.20797325,138.67,138.65,7.21236119]
[1764876465381,7.20797325,138.67,138.62,17.028864]
[1764876465382,7.20797325,138.66,138.62,0.72]
[1764876465542,7.20797325,138.65,138.61,25.24367893]
[1764876465741,7.20797325,138.65,138.61,18.75570568]
[1764876466038,7.20797325,138.62,138.6,517.21484777]
[1764876466249,0.72,138.64,138.6,517.21484777]
[1764876466463,7.20797325,138.63,138.6,517.21484777]
[1764876466668,7.92797325,138.64,138.6,517.21484777]
[1764876466962,7.92797325,138.64,138.6,543.18033905]
[1764876467266,7.20797325,138.64,138.6,543.18033905]
[1764876467838,7.20797325,138.63,138.6,535.2523658]
[1764876468166,32.4407849,138.66,138.6,542.46033905]
[1764876468353,7.20797325,138.64,138.6,542.46033905]
[1764876468765,32.4407849,138.66,138.6,543.18033905]
[1764876468960,7.20797325,138.64,138.6,543.18033905]
[1764876469158,7.20797325,138.63,138.6,535.2523658]
[1764876469555,7.20797325,138.63,138.6,535.9723658]
[1764876469971,7.20797325,138.64,138.6,535.9723658]
[1764876470271,8.80994492,138.64,138.6,517.21484777]
[1764876470448,7.20797325,138.63,138.6,535.2523658]
[1764876470768,0.72,138.64,138.61,0.72]
[1764876470769,7.20797325,138.64,138.61,0.72]
[1764876470955,7.20797325,138.64,138.6,535.9723658]
[1764876471271,7.20797325,138.64,138.61,0.72]
[1764876471768,7.20797325,138.66,138.62,7.20797325]
[1764876472170,16.308864,138.67,138.62,7.20797325]
[1764876472357,7.21038319,138.69,138.63,7.92797325]
[1764876472562,7.20797325,138.68,138.63,7.92797325]
[1764876472764,7.20797325,138.67,138.63,7.92797325]
[1764876473173,7.20797325,138.67,138.64,7.93292556]
[1764876473690,8.80994492,138.7,138.65,7.92797325]
[1764876473879,16.7398185,138.7,138.65,7.92797325]
[1764876474067,7.92797325,138.69,138.65,7.20797325]
[1764876474266,7.92797325,138.69,138.64,25.24523946]
[1764876474464,16.0198185,138.7,138.64,25.24523946]
[1764876474465,7.20797325,138.68,138.64,33.17321271]
[1764876474661,7.20797325,138.67,138.64,7.21292556]
[1764876475198,7.92797325,138.66,138.63,7.21324752]
[1764876475381,16.308864,138.67,138.63,7.93324752]
[1764876475563,24.23683725,138.67,138.63,7.21324752]
[1764876476173,32.43683725,138.67,138.63,7.21324752]
[1764876476360,17.00994492,138.68,138.63,33.17483542]
[1764876476567,0.72,138.67,138.63,33.17483542]
[1764876476872,0.72,138.67,138.64,0.72]
[1764876476873,7.20797325,138.67,138.64,0.72]
[1764876477070,7.20797325,138.7,138.65,32.45139192]
[1764876477379,7.92797325,138.73,138.69,7.20797325]
[1764876477564,0.72,138.73,138.69,7.20797325]
[1764876477764,8.80994492,138.73,138.69,7.92797325]
[1764876477966,8.80994492,138.73,138.69,0.72]
[1764876478190,16.73791817,138.73,138.69,7.20797325]
[1764876478392,16.73791817,138.73,138.65,77.61430935]
[1764876478393,16.73791817,138.73,138.67,0.72]
[1764876478690,7.20797325,138.72,138.68,7.20797325]
[1764876478896,7.92797325,138.72,138.68,7.20797325]
[1764876479095,0.72,138.71,138.68,7.20797325]
[1764876479286,0.72,138.71,138.68,14.41872977]
[1764876479682,7.20797325,138.72,138.68,14.41872977]
[1764876479876,7.92797325,138.72,138.68,7.21075652]
[1764876480280,7.92797325,138.72,138.68,15.13872977]
[1764876480796,8.80994492,138.74,138.69,7.92797325]
[1764876481094,0.72,138.78,138.72,7.20797325]
[1764876481285,0.72,138.78,138.69,0.72]
[1764876481286,8.80994492,138.76,138.7,8.2]
[1764876481591,16.73673863,138.76,138.71,14.4172588]
[1764876481767,7.20797325,138.75,138.71,14.4172588]
[1764876481975,7.20797325,138.75,138.71,7.92797325]
[1764876482275,0.72,138.81,138.73,7.20797325]
[1764876482480,186.58035595,138.84,138.72,0.72]
[1764876482481,7.20797325,138.79,138.75,7.20797325]
[1764876482790,7.20797325,138.79,138.7,7.20962579]
[1764876482791,7.20797325,138.76,138.7,25.23413912]
[1764876482995,7.20797325,138.72,138.68,7.20797325]
[1764876483209,7.20797325,138.71,138.65,8.2]
[1764876483495,7.20797325,138.71,138.68,7.21084511]
[1764876483875,7.20797325,138.74,138.69,7.92797325]
[1764876484181,15.40797325,138.73,138.69,0.72]
[1764876484380,7.20797325,138.72,138.68,25.23795788]
[1764876484590,7.20797325,138.72,138.68,25.95795788]
[1764876484768,7.20797325,138.71,138.68,25.95795788]
[1764876485093,7.20797325,138.72,138.69,0.72]
[1764876485600,7.20797325,138.72,138.69,7.20994978]
[1764876485805,7.20797325,138.71,138.69,7.20994978]
[1764876486497,12.5563437,138.7,138.67,7.21116945]
[1764876486674,12.5563437,138.69,138.66,23.52054917]
[1764876486890,12.5563437,138.69,138.67,7.21136083]
[1764876487593,13.2763437,138.7,138.67,7.21136083]
[1764876487996,12.5563437,138.71,138.68,0.72]
[1764876488202,12.5563437,138.72,138.68,0.72]
[1764876488790,12.5563437,138.71,138.67,37.7961173]
[1764876488990,12.5563437,138.7,138.67,7.93136083]
[1764876489195,22.08628862,138.7,138.66,36.07690948]
[1764876489497,16.01924001,138.71,138.66,23.52056578]
[1764876489704,12.5563437,138.7,138.66,23.52056578]
[1764876489913,12.5563437,138.7,138.66,36.79690948]
[1764876490220,13.2763437,138.7,138.66,23.52056578]
[1764876490523,12.5563437,138.69,138.66,7.21170178]
[1764876490816,12.5563437,138.69,138.66,7.93170178]
[1764876491023,12.5563437,138.69,138.66,7.21170178]
[1764876491201,12.5563437,138.68,138.65,7.2122762]
[1764876491596,12.5563437,138.68,138.65,7.9322762]
[1764876491797,12.5563437,138.69,138.65,20.4886199]
[1764876492002,35.73315881,138.71,138.65,19.7686199]
[1764876492003,16.73942717,138.71,138.65,19.7686199]
[1764876492221,12.5563437,138.7,138.66,13.2763437]
[1764876492519,17.70994492,138.71,138.66,13.2763437]
[1764876492821,8.18,138.75,138.7,12.5563437]
[1764876492999,12.5563437,138.73,138.69,12.5563437]
[1764876493196,8.88,138.75,138.69,13.2363437]
[1764876493435,16.01663272,138.76,138.7,13.2363437]
[1764876493737,20.7363437,138.75,138.72,7.20876585]
[1764876494445,12.5563437,138.74,138.72,7.20876585]
[1764876495317,8.18,138.75,138.72,0.68]
[1764876495523,20.7363437,138.75,138.72,0.68]
[1764876495724,20.7363437,138.75,138.71,25.23249944]
[1764876495931,21.4363437,138.75,138.71,25.91249944]
[1764876496749,8.18,138.75,138.72,7.20847409]
[1764876496921,19.76309799,138.76,138.72,7.20847409]
[1764876497126,12.5563437,138.75,138.72,7.88847409]
[1764876497662,22.06628862,138.76,138.72,7.88847409]
[1764876498171,0.7,138.8,138.74,12.5563437]
[1764876498320,12.5563437,138.79,138.75,12.5563437]
[1764876498655,12.5563437,138.79,138.73,0.68]
[1764876498854,8.88,138.8,138.73,0.68]
[1764876498855,13.2563437,138.8,138.76,7.2066878]
[1764876499166,0.7,138.84,138.79,12.5563437]
[1764876499438,0.7,138.84,138.8,13.2363437]
[1764876499439,21.4363437,138.84,138.8,13.2363437]
[1764876500031,0.2,138.88,138.83,16.308864]
[1764876500353,12.5563437,138.87,138.83,12.5563437]
[1764876500530,0.9,138.88,138.83,12.5563437]
[1764876500735,12.5563437,138.87,138.83,7.88273011]
[1764876500932,7.40062784,138.88,138.83,7.88273011]
[1764876500933,0.9,138.88,138.83,7.88273011]
[1764876501238,0.2,138.88,138.83,20.43907381]
[1764876501436,12.7563437,138.88,138.84,12.5563437]
[1764876501636,0.9,138.88,138.84,0.68]
[1764876501959,0.2,138.88,138.84,13.2363437]
[1764876502162,0.2,138.88,138.85,12.5563437]
[1764876502555,0.2,138.88,138.85,13.2363437]
[1764876502743,0.2,138.88,138.86,7.20149791]
[1764876503054,0.2,138.88,138.86,7.88149791]
[1764876503367,0.2,138.88,138.87,0.68]
[1764876503741,0.2,138.88,138.87,13.2363437]
[1764876504359,0.2,138.88,138.87,12.5563437]
[1764876504563,0.2,138.88,138.86,19.75784161]
[1764876504776,0.9,138.88,138.85,7.20193102]
[1764876504946,0.2,138.88,138.85,7.20193102]
[1764876505274,0.2,138.88,138.85,20.43827472]
[1764876505452,0.2,138.88,138.85,7.88193102]
[1764876505673,0.2,138.88,138.85,20.43827472]
[1764876506049,0.2,138.88,138.86,13.2363437]
[1764876506469,0.2,138.88,138.87,0.68]
[1764876506972,0.2,138.88,138.87,7.88097933]
[1764876507165,0.2,138.88,138.87,7.20097933]
[1764876507566,0.2,138.88,138.87,7.88097933]
[1764876507771,0.2,138.88,138.87,7.20097933]
[1764876508870,0.2,138.94,138.9,16.308864]
[1764876509068,0.2,138.94,138.92,12.5563437]
[1764876509356,0.2,138.94,138.91,7.87890576]
[1764876509357,0.2,138.94,138.93,12.5563437]
[1764876509574,0.2,138.94,138.92,12.5563437]
[1764876509790,0.2,138.94,138.93,28.8652077]
[1764876510071,0.2,138.94,138.93,29.5452077]
[1764876510281,8.80994492,138.93,138.87,18.68194186]
[1764876510485,0.9,138.94,138.9,7.19942404]
[1764876510651,0.2,138.94,138.9,19.75576774]
[1764876510849,0.2,138.94,138.91,0.68]
[1764876511079,0.2,138.94,138.92,7.19838756]
[1764876511251,0.9,138.94,138.89,0.68]
[1764876511446,8.09757924,138.94,138.87,0.68]
[1764876511681,13.2563437,138.93,138.9,7.19936891]
[1764876511861,12.5563437,138.92,138.88,7.20012792]
[1764876512061,17.68994492,138.92,138.85,21.4163437]
[1764876512270,17.68994492,138.92,138.85,0.68]
[1764876512271,12.5563437,138.89,138.85,0.68]
[1764876512980,12.5563437,138.89,138.86,7.20137136]
[1764876513751,7.89911726,138.91,138.86,7.88137136]
[1764876513956,0.7,138.91,138.87,0.68]
[1764876514260,12.5563437,138.91,138.87,0.68]
[1764876514884,12.5563437,138.89,138.86,7.20137136]
[1764876515061,12.5563437,138.87,138.82,8.18]
[1764876515387,12.5563437,138.86,138.81,20.43996951]
[1764876515561,12.5563437,138.86,138.82,7.20323973]
[1764876515756,13.2563437,138.86,138.83,7.20301308]
[1764876516179,12.5563437,138.85,138.8,8.18]
[1764876516377,8.80994492,138.87,138.8,12.5563437]
[1764876516683,0.2,138.94,138.86,12.5563437]
[1764876516893,0.2,138.94,138.89,16.308864]
[1764876517099,0.2,138.94,138.91,16.308864]
[1764876517278,0.2,138.94,138.92,0.68]
[1764876517788,0.2,138.94,138.92,13.2363437]
[1764876518401,0.2,138.94,138.93,13.2363437]
[1764876518584,0.2,138.94,138.92,12.5563437]
[1764876518779,0.2,138.94,138.91,16.308864]
[1764876518986,0.2,138.94,138.93,7.19786943]
[1764876519371,0.2,138.96,138.95,16.308864]
[1764876519611,0.2,138.96,138.95,29.5452077]
[1764876519909,18.18128523,139.04,138.95,29.5452077]
[1764876519910,12.7563437,139.04,138.95,29.5452077]
[1764876520078,12.5563437,139.02,138.97,28.8652077]
[1764876520278,12.5563437,139.02,138.97,12.5563437]
[1764876520481,0.9,139.04,138.98,13.2363437]
[1764876520787,12.5563437,139.03,138.98,0.68]
[1764876520970,12.5563437,139.03,138.98,13.2363437]
[1764876521173,0.2,139.04,138.99,24.18362621]
[1764876521375,0.7,139.03,138.99,54.04687544]
[1764876521579,0.2,139.04,138.99,42.17053174]
[1764876521873,0.2,139.04,139.0,13.2363437]
[1764876522377,0.2,139.04,138.99,49.67053174]
[1764876522378,12.5563437,139.03,138.99,49.67053174]
[1764876522777,13.2263437,139.02,138.99,7.19476221]
[1764876522989,0.67,139.02,138.95,39.39808836]
[1764876523199,13.2263437,139.01,138.96,7.19631548]
[1764876523398,0.87,139.04,139.0,12.5563437]
[1764876523577,21.36628862,139.02,138.97,12.5563437]
[1764876523777,13.2263437,139.01,138.96,37.74344789]
[1764876523973,12.5563437,138.99,138.96,7.19631548]
[1764876524284,13.2263437,139.0,138.96,7.19631548]
[1764876524504,0.67,139.0,138.96,7.19631548]
[1764876524706,13.2263437,139.0,138.96,7.19631548]
[1764876524903,9.47994492,139.02,138.96,20.42265918]
[1764876525211,0.67,139.01,138.96,38.41344789]